[Event "Late-Titled-Tuesday-Blitz-August-29-2023"]
[Site "Chess.com"]
[Date "2023.08.29"]
[Round "7"]
[White "Jumbo"]
[Black "AvitalBor"]
[Result "0-1"]
[WhiteElo "2928"]
[BlackElo "2766"]
[TimeControl "180+1"]
[EndTime "15:18:35 PDT"]
[Termination "AvitalBor won by resignation"]

1. Nf3 {[%clk 0:03:00.9]} 1... e6 {[%clk 0:02:59.3]} 2. c4 {[%clk 0:03:01]} 2...
d5 {[%clk 0:03:00.2]} 3. e3 {[%clk 0:03:00.7]} 3... Nf6 {[%clk 0:03:00.6]} 4.
Nc3 {[%clk 0:03:01.1]} 4... c5 {[%clk 0:02:59.2]} 5. cxd5 {[%clk 0:03:01.4]}
5... Nxd5 {[%clk 0:02:58.9]} 6. Bc4 {[%clk 0:03:00.2]} 6... Nc6 {[%clk
0:02:58.5]} 7. O-O {[%clk 0:02:59.7]} 7... Be7 {[%clk 0:02:54.1]} 8. Qe2 {[%clk
0:02:45.7]} 8... O-O {[%clk 0:02:53.3]} 9. Rd1 {[%clk 0:02:46.3]} 9... Nb6
{[%clk 0:02:46.1]} 10. Bb5 {[%clk 0:02:39.5]} 10... Qc7 {[%clk 0:02:45.7]} 11.
d4 {[%clk 0:02:35.4]} 11... a6 {[%clk 0:02:45.6]} 12. Bd3 {[%clk 0:02:24.5]}
12... Rd8 {[%clk 0:02:41.2]} 13. Be4 {[%clk 0:02:12.9]} 13... h6 {[%clk
0:02:31.9]} 14. a3 {[%clk 0:02:10.3]} 14... Bd7 {[%clk 0:01:55.4]} 15. dxc5
{[%clk 0:02:04.3]} 15... Bxc5 {[%clk 0:01:56.3]} 16. b4 {[%clk 0:02:02.9]} 16...
Bd6 {[%clk 0:01:56.9]} 17. Bb2 {[%clk 0:01:46.9]} 17... Ne5 {[%clk 0:01:56.2]}
18. Rac1 {[%clk 0:01:35.4]} 18... Nbc4 {[%clk 0:01:53.8]} 19. Nb1 {[%clk
0:00:56.7]} 19... Bb5 {[%clk 0:01:22.5]} 20. a4 {[%clk 0:00:41.8]} 20... Bxa4
{[%clk 0:01:22.2]} 21. Rd4 {[%clk 0:00:25.5]} 21... Bb5 {[%clk 0:00:50.1]} 22.
Nxe5 {[%clk 0:00:03.6]} 22... Bxe5 {[%clk 0:00:50.9]} 23. Rxd8+ {[%clk
0:00:02.9]} 23... Rxd8 {[%clk 0:00:49.4]} 24. Bxe5 {[%clk 0:00:02.7]} 24... Qxe5
{[%clk 0:00:39.8]} 25. Bd3 {[%clk 0:00:02.5]} 25... Na3 {[%clk 0:00:20.5]} 26.
Bxb5 {[%clk 0:00:02]} 26... Nxb5 {[%clk 0:00:21.4]} 27. h3 {[%clk 0:00:01.7]}
27... Qa1 {[%clk 0:00:18.4]} 28. Qc2 {[%clk 0:00:01.9]} 28... Qe5 {[%clk
0:00:15.3]} 29. Nd2 {[%clk 0:00:01.9]} 29... g6 {[%clk 0:00:12.2]} 30. Nf3
{[%clk 0:00:02.4]} 30... Qd6 {[%clk 0:00:11.9]} 31. Qc4 {[%clk 0:00:02.4]} 31...
Rd7 {[%clk 0:00:10.9]} 32. Qe4 {[%clk 0:00:02.8]} 32... Kg7 {[%clk 0:00:09.8]}
33. Ne5 {[%clk 0:00:02.6]} 33... Rc7 {[%clk 0:00:09.4]} 34. Rxc7 {[%clk
0:00:02.1]} 34... Qxc7 {[%clk 0:00:09.7]} 35. Qf4 {[%clk 0:00:02.3]} 35... f6
{[%clk 0:00:08.3]} 36. Nd3 {[%clk 0:00:01.8]} 36... Qxf4 {[%clk 0:00:08.8]} 37.
exf4 {[%clk 0:00:02.7]} 37... Kf7 {[%clk 0:00:08.3]} 38. Kf1 {[%clk 0:00:03.6]}
38... Ke7 {[%clk 0:00:08.8]} 39. Ke2 {[%clk 0:00:04.1]} 39... b6 {[%clk
0:00:09.4]} 40. Ke3 {[%clk 0:00:04.2]} 40... a5 {[%clk 0:00:10]} 41. bxa5 {[%clk
0:00:04.3]} 41... bxa5 {[%clk 0:00:10.9]} 42. Nc5 {[%clk 0:00:04.9]} 42... Nc7
{[%clk 0:00:08.7]} 43. g3 {[%clk 0:00:04.3]} 43... Nd5+ {[%clk 0:00:08.7]} 44.
Kd4 {[%clk 0:00:04.9]} 44... g5 {[%clk 0:00:08.8]} 45. fxg5 {[%clk 0:00:04.6]}
45... hxg5 {[%clk 0:00:09.4]} 46. h4 {[%clk 0:00:05.1]} 46... gxh4 {[%clk
0:00:09.3]} 47. gxh4 {[%clk 0:00:06]} 47... Nf4 {[%clk 0:00:09.7]} 48. Ke4
{[%clk 0:00:05.4]} 48... e5 {[%clk 0:00:10]} 49. Kf5 {[%clk 0:00:05.6]} 49...
Kf7 {[%clk 0:00:06.1]} 50. Ne4 {[%clk 0:00:03.1]} 50... a4 {[%clk 0:00:06.1]}
51. Nxf6 {[%clk 0:00:01.1]} 51... a3 {[%clk 0:00:06.4]} 52. Ng4 {[%clk
0:00:01.7]} 52... a2 {[%clk 0:00:06]} 53. Nxe5+ {[%clk 0:00:02.6]} 53... Kg8
{[%clk 0:00:06.5]} 54. Kxf4 {[%clk 0:00:03]} 54... a1=Q {[%clk 0:00:06.6]} 55.
f3 {[%clk 0:00:03.9]} 55... Qd4+ {[%clk 0:00:05.4]} 56. Kf5 {[%clk 0:00:04.6]}
56... Qxh4 {[%clk 0:00:05.6]} 57. Ng4 {[%clk 0:00:05.5]} 57... Qh3 {[%clk
0:00:05.7]} 58. Kg5 {[%clk 0:00:05.8]} 58... Qxf3 {[%clk 0:00:04.5]} 59. Nh6+
{[%clk 0:00:06.3]} 59... Kh7 {[%clk 0:00:04.5]} 60. Nf5 {[%clk 0:00:06.4]} 60...
Qd5 {[%clk 0:00:04.5]} 61. Kf6 {[%clk 0:00:06.8]} 61... Qc6+ {[%clk 0:00:04.8]}
62. Ke5 {[%clk 0:00:06.2]} 62... Qc5+ {[%clk 0:00:05.3]} 63. Ke6 {[%clk
0:00:06.5]} 63... Qb6+ {[%clk 0:00:05]} 64. Ke5 {[%clk 0:00:06.7]} 64... Kg6
{[%clk 0:00:04.9]} 65. Ne7+ {[%clk 0:00:07.3]} 65... Kf7 {[%clk 0:00:05.4]} 66.
Nd5 {[%clk 0:00:07.6]} 66... Qa5 {[%clk 0:00:05.5]} 67. Kd6 {[%clk 0:00:07.8]}
67... Qa6+ {[%clk 0:00:04.9]} 68. Ke5 {[%clk 0:00:08.3]} 68... Qc8 {[%clk
0:00:03.8]} 69. Kd6 {[%clk 0:00:07.9]} 69... Qe6+ {[%clk 0:00:03]} 70. Kc5
{[%clk 0:00:08.6]} 70... Qe5 {[%clk 0:00:02.8]} 71. Kc6 {[%clk 0:00:08.6]} 71...
Ke6 {[%clk 0:00:03.1]} 72. Nc7+ {[%clk 0:00:09.2]} 72... Kf5 {[%clk 0:00:03.4]}
73. Kd7 {[%clk 0:00:09.2]} 73... Qg7+ {[%clk 0:00:02.6]} 74. Kc6 {[%clk
0:00:09.3]} 74... Ke5 {[%clk 0:00:02.8]} 75. Nb5 {[%clk 0:00:09.5]} 75... Qg6+
{[%clk 0:00:02.4]} 76. Kc5 {[%clk 0:00:10]} 76... Qe8 {[%clk 0:00:03]} 77. Kb6
{[%clk 0:00:09]} 77... Qb8+ {[%clk 0:00:03]} 78. Kc6 {[%clk 0:00:09.2]} 78...
Qc8+ {[%clk 0:00:03.5]} 79. Kb6 {[%clk 0:00:09.4]} 79... Kd5 {[%clk 0:00:03.8]}
80. Nc7+ {[%clk 0:00:10]} 80... Kd6 {[%clk 0:00:04.3]} 81. Nb5+ {[%clk
0:00:10.7]} 81... Kd7 {[%clk 0:00:04.9]} 82. Ka5 {[%clk 0:00:11.2]} 82... Qc5
{[%clk 0:00:05]} 83. Ka4 {[%clk 0:00:11]} 83... Kc6 {[%clk 0:00:05.1]} 84. Na3
{[%clk 0:00:11.7]} 84... Kd5 {[%clk 0:00:05.3]} 85. Kb3 {[%clk 0:00:12]} 85...
Qe3+ {[%clk 0:00:05.1]} 86. Kb4 {[%clk 0:00:12]} 86... Qd2+ {[%clk 0:00:04.5]}
87. Kb3 {[%clk 0:00:11.6]} 87... Kc5 {[%clk 0:00:04.6]} 88. Nc2 {[%clk
0:00:12.1]} 88... Qd3+ {[%clk 0:00:04.9]} 89. Kb2 {[%clk 0:00:12.6]} 89... Qh3
{[%clk 0:00:04.8]} 0-1

[Event "Late-Titled-Tuesday-Blitz-August-29-2023"]
[Site "Chess.com"]
[Date "2023.08.29"]
[Round "7"]
[White "Grebeniuk-S"]
[Black "superfast64"]
[Result "1-0"]
[WhiteElo "2613"]
[BlackElo "2460"]
[TimeControl "180+1"]
[EndTime "15:19:01 PDT"]
[Termination "Grebeniuk-S won by resignation"]

1. d4 {[%clk 0:03:00.9]} 1... d5 {[%clk 0:02:59.8]} 2. Nf3 {[%clk 0:03:00.2]}
2... c6 {[%clk 0:02:59.4]} 3. Bf4 {[%clk 0:03:00.1]} 3... Bf5 {[%clk 0:02:59.1]}
4. Nbd2 {[%clk 0:03:00]} 4... e6 {[%clk 0:02:59.5]} 5. e3 {[%clk 0:03:00.6]}
5... Bd6 {[%clk 0:02:59.4]} 6. Bg3 {[%clk 0:03:01.1]} 6... Qc7 {[%clk
0:02:58.2]} 7. Bd3 {[%clk 0:03:00.8]} 7... Nd7 {[%clk 0:02:56.8]} 8. Rc1 {[%clk
0:02:59.5]} 8... Ngf6 {[%clk 0:02:56]} 9. O-O {[%clk 0:02:59.6]} 9... O-O {[%clk
0:02:55.6]} 10. Bxf5 {[%clk 0:02:55.6]} 10... exf5 {[%clk 0:02:55.4]} 11. Bxd6
{[%clk 0:02:56.5]} 11... Qxd6 {[%clk 0:02:55.9]} 12. c4 {[%clk 0:02:57.4]} 12...
g6 {[%clk 0:02:53.7]} 13. a3 {[%clk 0:02:55.2]} 13... a6 {[%clk 0:02:49.4]} 14.
b4 {[%clk 0:02:55.2]} 14... h5 {[%clk 0:02:47]} 15. Nb3 {[%clk 0:02:55.5]} 15...
Ne4 {[%clk 0:02:45]} 16. Nc5 {[%clk 0:02:55.8]} 16... Rab8 {[%clk 0:02:40.5]}
17. cxd5 {[%clk 0:02:54.3]} 17... Qxd5 {[%clk 0:02:38.9]} 18. Qb3 {[%clk
0:02:48.4]} 18... Qxb3 {[%clk 0:02:35.3]} 19. Nxb3 {[%clk 0:02:49.3]} 19... Rfe8
{[%clk 0:02:31.8]} 20. g3 {[%clk 0:02:48.9]} 20... Kg7 {[%clk 0:02:31.5]} 21. h4
{[%clk 0:02:48.9]} 21... Kf6 {[%clk 0:02:30]} 22. Rc2 {[%clk 0:02:48.1]} 22...
Re7 {[%clk 0:02:29.2]} 23. Rfc1 {[%clk 0:02:48.5]} 23... Rd8 {[%clk 0:02:24.8]}
24. Kg2 {[%clk 0:02:48.4]} 24... Ke6 {[%clk 0:02:20.8]} 25. Nc5+ {[%clk
0:02:45.1]} 25... Ndxc5 {[%clk 0:02:19.4]} 26. bxc5 {[%clk 0:02:46]} 26... Rdd7
{[%clk 0:02:11.9]} 27. Rb2 {[%clk 0:02:45.6]} 27... Rc7 {[%clk 0:02:11.9]} 28.
Rcb1 {[%clk 0:02:45.9]} 28... Nc3 {[%clk 0:02:07.7]} 29. Rc1 {[%clk 0:02:43]}
29... Ne4 {[%clk 0:02:03.1]} 30. Ne5 {[%clk 0:02:39.9]} 30... Kf6 {[%clk
0:01:38.7]} 31. Nc4 {[%clk 0:02:38.2]} 31... Ke6 {[%clk 0:01:28.4]} 32. Rb3
{[%clk 0:02:37.6]} 32... Kd5 {[%clk 0:01:25.5]} 33. Nb6+ {[%clk 0:02:35.1]}
33... Ke6 {[%clk 0:01:25.1]} 34. Rc2 {[%clk 0:02:34.7]} 34... f6 {[%clk
0:01:23]} 35. Nc4 {[%clk 0:02:24.6]} 35... g5 {[%clk 0:01:22.8]} 36. hxg5 {[%clk
0:02:23.1]} 36... fxg5 {[%clk 0:01:21.2]} 37. Rcb2 {[%clk 0:02:09.4]} 37... h4
{[%clk 0:01:18.2]} 38. Na5 {[%clk 0:01:48.3]} 38... hxg3 {[%clk 0:01:16.5]} 39.
fxg3 {[%clk 0:01:49.2]} 39... Nf6 {[%clk 0:01:08.3]} 40. Nxb7 {[%clk 0:01:37.1]}
40... Nd5 {[%clk 0:01:00.7]} 41. Nd6 {[%clk 0:01:30.9]} 41... Kf6 {[%clk
0:00:59.4]} 42. Re2 {[%clk 0:01:11.6]} 42... Kg6 {[%clk 0:00:54.6]} 43. Kf2
{[%clk 0:01:07.2]} 43... Rh7 {[%clk 0:00:52.1]} 44. e4 {[%clk 0:00:51]} 44...
Rh2+ {[%clk 0:00:46.5]} 45. Ke1 {[%clk 0:00:51.6]} 45... Rxe2+ {[%clk
0:00:41.4]} 46. Kxe2 {[%clk 0:00:52.5]} 46... fxe4 {[%clk 0:00:40.7]} 47. Nxe4
{[%clk 0:00:52]} 47... Kf5 {[%clk 0:00:32.8]} 48. Nd6+ {[%clk 0:00:48.5]} 48...
Kg4 {[%clk 0:00:33.7]} 49. Rb8 {[%clk 0:00:40.2]} 49... Kh3 {[%clk 0:00:26.2]}
50. Rg8 {[%clk 0:00:35.1]} 50... Kg4 {[%clk 0:00:16.5]} 51. Kd3 {[%clk
0:00:31.6]} 51... Kxg3 {[%clk 0:00:13.4]} 52. Rxg5+ {[%clk 0:00:29.1]} 52... Kf4
{[%clk 0:00:14.3]} 53. Rf5+ {[%clk 0:00:28.7]} 53... Kg4 {[%clk 0:00:14.4]} 54.
Rf7 {[%clk 0:00:28.2]} 54... Rxf7 {[%clk 0:00:12]} 55. Nxf7 {[%clk 0:00:29.1]}
55... Kf5 {[%clk 0:00:12.6]} 56. Ne5 {[%clk 0:00:29]} 56... Ne7 {[%clk
0:00:12.6]} 57. Kc4 {[%clk 0:00:29]} 57... Ke6 {[%clk 0:00:13.1]} 58. Nd3 {[%clk
0:00:27.9]} 58... Nd5 {[%clk 0:00:12.6]} 59. a4 {[%clk 0:00:26.8]} 59... a5
{[%clk 0:00:12.7]} 60. Ne5 {[%clk 0:00:26]} 60... Ne7 {[%clk 0:00:13.1]} 61. Nf3
{[%clk 0:00:25.4]} 61... Kd7 {[%clk 0:00:12.5]} 62. Nd2 {[%clk 0:00:23.7]} 62...
Kc7 {[%clk 0:00:13.4]} 63. Kd3 {[%clk 0:00:24.2]} 63... Nd5 {[%clk 0:00:13.7]}
64. Nc4 {[%clk 0:00:24.4]} 64... Nb4+ {[%clk 0:00:12.8]} 65. Kc3 {[%clk
0:00:23.4]} 65... Nd5+ {[%clk 0:00:13.2]} 66. Kb3 {[%clk 0:00:24.1]} 66... Nf4
{[%clk 0:00:12.9]} 67. Nxa5 {[%clk 0:00:24]} 67... Ne2 {[%clk 0:00:13.2]} 68.
Kc4 {[%clk 0:00:24.3]} 68... Kd7 {[%clk 0:00:12.5]} 69. Nb3 {[%clk 0:00:24.7]}
69... Nf4 {[%clk 0:00:11.1]} 70. Nd2 {[%clk 0:00:24.7]} 70... Kc7 {[%clk
0:00:11.2]} 71. Ne4 {[%clk 0:00:25.2]} 71... Nd5 {[%clk 0:00:11.8]} 72. Nc3
{[%clk 0:00:25.5]} 72... Ne3+ {[%clk 0:00:11.9]} 73. Kb4 {[%clk 0:00:26]} 73...
Kb7 {[%clk 0:00:11.5]} 74. Ne4 {[%clk 0:00:22.4]} 74... Ka6 {[%clk 0:00:11.3]}
75. Nd2 {[%clk 0:00:19.8]} 75... Nd5+ {[%clk 0:00:10.5]} 76. Kc4 {[%clk
0:00:19.2]} 76... Ka5 {[%clk 0:00:11.1]} 77. Kb3 {[%clk 0:00:17.7]} 77... Ne7
{[%clk 0:00:10.3]} 78. Nc4+ {[%clk 0:00:17.9]} 78... Ka6 {[%clk 0:00:10.9]} 79.
Ne5 {[%clk 0:00:18.8]} 79... Kb7 {[%clk 0:00:10.3]} 80. Kb4 {[%clk 0:00:18.7]}
80... Ka6 {[%clk 0:00:10.9]} 81. Kc4 {[%clk 0:00:19.6]} 81... Ka5 {[%clk
0:00:10.8]} 82. Kb3 {[%clk 0:00:20]} 82... Ka6 {[%clk 0:00:11]} 83. Nf7 {[%clk
0:00:20]} 83... Ka5 {[%clk 0:00:11]} 84. Nd6 {[%clk 0:00:20.6]} 84... Ka6 {[%clk
0:00:11.6]} 85. Kb4 {[%clk 0:00:20.7]} 85... Nd5+ {[%clk 0:00:11.3]} 86. Kc4
{[%clk 0:00:21.1]} 86... Nc7 {[%clk 0:00:12]} 87. Nf5 {[%clk 0:00:19.8]} 87...
Nd5 {[%clk 0:00:11.9]} 88. Ng7 {[%clk 0:00:11.3]} 88... Ka5 {[%clk 0:00:11.6]}
89. Kb3 {[%clk 0:00:12]} 89... Ka6 {[%clk 0:00:09.4]} 90. Ne6 {[%clk 0:00:12.2]}
90... Ka5 {[%clk 0:00:09]} 91. Nd8 {[%clk 0:00:12.5]} 91... Ne7 {[%clk
0:00:09.5]} 92. Nb7+ {[%clk 0:00:12]} 92... Ka6 {[%clk 0:00:09.7]} 93. Nd6
{[%clk 0:00:12.6]} 93... Ka5 {[%clk 0:00:10.1]} 94. Ne4 {[%clk 0:00:11.2]} 94...
Ka6 {[%clk 0:00:10.1]} 95. Nc3 {[%clk 0:00:11.9]} 95... Ka5 {[%clk 0:00:10.3]}
96. Kc4 {[%clk 0:00:12.5]} 96... Ka6 {[%clk 0:00:10]} 97. d5 {[%clk 0:00:13.4]}
97... cxd5+ {[%clk 0:00:10.7]} 98. Nxd5 {[%clk 0:00:14]} 98... Nc8 {[%clk
0:00:10.1]} 99. Kb4 {[%clk 0:00:12.7]} 99... Na7 {[%clk 0:00:10.5]} 100. Ne7
{[%clk 0:00:11.1]} 100... Kb7 {[%clk 0:00:10.4]} 101. a5 {[%clk 0:00:10.1]}
101... Kc7 {[%clk 0:00:10.6]} 102. Kc4 {[%clk 0:00:09.9]} 102... Kd7 {[%clk
0:00:10.3]} 103. Nd5 {[%clk 0:00:10.4]} 103... Nc6 {[%clk 0:00:10.2]} 104. Kb5
{[%clk 0:00:10.3]} 104... Nd4+ {[%clk 0:00:10.3]} 105. Kb6 {[%clk 0:00:10.3]}
105... Ke6 {[%clk 0:00:10.7]} 106. Nb4 {[%clk 0:00:10.7]} 106... Kd7 {[%clk
0:00:09.6]} 107. Kb7 {[%clk 0:00:09.9]} 107... Nb5 {[%clk 0:00:08.9]} 108. c6+
{[%clk 0:00:09.6]} 108... Ke6 {[%clk 0:00:08.7]} 109. a6 {[%clk 0:00:09.8]}
109... Ke5 {[%clk 0:00:07.9]} 110. a7 {[%clk 0:00:09.6]} 110... Nxa7 {[%clk
0:00:08.1]} 111. Kxa7 {[%clk 0:00:10.5]} 111... Kd6 {[%clk 0:00:08.6]} 112. Kb7
{[%clk 0:00:11.4]} 1-0

[Event "Late-Titled-Tuesday-Blitz-August-29-2023"]
[Site "Chess.com"]
[Date "2023.08.29"]
[Round "7"]
[White "viktorgen2021"]
[Black "WPWPWP-2015"]
[Result "1/2-1/2"]
[WhiteElo "2440"]
[BlackElo "2558"]
[TimeControl "180+1"]
[EndTime "15:19:03 PDT"]
[Termination "Game drawn by 50-move rule"]

1. d4 {[%clk 0:02:54.8]} 1... Nf6 {[%clk 0:02:58.8]} 2. Nf3 {[%clk 0:02:52.2]}
2... e6 {[%clk 0:02:58.1]} 3. g3 {[%clk 0:02:52.3]} 3... c5 {[%clk 0:02:50.3]}
4. Bg2 {[%clk 0:02:51.2]} 4... Nc6 {[%clk 0:02:45.4]} 5. c3 {[%clk 0:02:47.5]}
5... Be7 {[%clk 0:02:36.3]} 6. O-O {[%clk 0:02:44.7]} 6... O-O {[%clk
0:02:35.2]} 7. Bg5 {[%clk 0:02:44.1]} 7... b6 {[%clk 0:02:31.5]} 8. Ne5 {[%clk
0:02:42]} 8... Bb7 {[%clk 0:02:29.1]} 9. Nxc6 {[%clk 0:02:41.9]} 9... Bxc6
{[%clk 0:02:28.9]} 10. Bxc6 {[%clk 0:02:41.2]} 10... dxc6 {[%clk 0:02:28.5]} 11.
Bxf6 {[%clk 0:02:41.4]} 11... gxf6 {[%clk 0:02:25.8]} 12. dxc5 {[%clk
0:02:41.3]} 12... Qxd1 {[%clk 0:02:23.5]} 13. Rxd1 {[%clk 0:02:41]} 13... Bxc5
{[%clk 0:02:23.5]} 14. Nd2 {[%clk 0:02:41.4]} 14... Rfd8 {[%clk 0:02:22.2]} 15.
Nf3 {[%clk 0:02:37.6]} 15... Bf8 {[%clk 0:02:12.4]} 16. e3 {[%clk 0:02:36.9]}
16... c5 {[%clk 0:02:11]} 17. Kf1 {[%clk 0:02:37]} 17... Be7 {[%clk 0:02:09.3]}
18. Ke2 {[%clk 0:02:37.5]} 18... Kf8 {[%clk 0:02:07.2]} 19. Rxd8+ {[%clk
0:02:36.9]} 19... Bxd8 {[%clk 0:02:06.8]} 20. Rd1 {[%clk 0:02:37.8]} 20... Ke7
{[%clk 0:02:06.4]} 21. e4 {[%clk 0:02:26.9]} 21... Bc7 {[%clk 0:02:04.4]} 22.
Ne1 {[%clk 0:02:24.2]} 22... c4 {[%clk 0:02:01.9]} 23. f4 {[%clk 0:02:23.8]}
23... b5 {[%clk 0:02:00.1]} 24. Nc2 {[%clk 0:02:22.3]} 24... a6 {[%clk
0:01:59.5]} 25. a4 {[%clk 0:02:19.5]} 25... Rb8 {[%clk 0:01:44.5]} 26. Nb4
{[%clk 0:02:17.6]} 26... Rb6 {[%clk 0:01:38.4]} 27. axb5 {[%clk 0:02:01.2]}
27... axb5 {[%clk 0:01:35]} 28. Ra1 {[%clk 0:02:00.6]} 28... Rb7 {[%clk
0:01:32.2]} 29. Ra8 {[%clk 0:01:57.7]} 29... Bd6 {[%clk 0:01:28.6]} 30. Nc6+
{[%clk 0:01:52.1]} 30... Kd7 {[%clk 0:01:28.2]} 31. Nd8 {[%clk 0:01:52.3]} 31...
Rc7 {[%clk 0:01:06.2]} 32. Nxf7 {[%clk 0:01:50.3]} 32... Bc5 {[%clk 0:01:02.6]}
33. Rh8 {[%clk 0:01:47.2]} 33... Ke7 {[%clk 0:00:52.9]} 34. Nh6 {[%clk
0:01:47.4]} 34... Kd6 {[%clk 0:00:51.6]} 35. Ng4 {[%clk 0:01:43.4]} 35... f5
{[%clk 0:00:44]} 36. e5+ {[%clk 0:01:41.2]} 36... Kc6 {[%clk 0:00:42.7]} 37. Nf6
{[%clk 0:01:42.1]} 37... b4 {[%clk 0:00:38]} 38. Rxh7 {[%clk 0:01:38.5]} 38...
Rc8 {[%clk 0:00:33.9]} 39. Nd7 {[%clk 0:01:25.2]} 39... Bg1 {[%clk 0:00:33.2]}
40. cxb4 {[%clk 0:01:19.6]} 40... Kb5 {[%clk 0:00:32]} 41. Nc5 {[%clk
0:01:16.1]} 41... Bxc5 {[%clk 0:00:30.9]} 42. bxc5 {[%clk 0:01:15.7]} 42... Kxc5
{[%clk 0:00:31.4]} 43. Kd2 {[%clk 0:01:13.8]} 43... Ra8 {[%clk 0:00:20.5]} 44.
Kc3 {[%clk 0:01:11]} 44... Rc8 {[%clk 0:00:17.8]} 45. Re7 {[%clk 0:01:04.4]}
45... Rh8 {[%clk 0:00:17.2]} 46. Rc7+ {[%clk 0:00:47.4]} 46... Kd5 {[%clk
0:00:16.8]} 47. Rxc4 {[%clk 0:00:47.5]} 47... Rxh2 {[%clk 0:00:16]} 48. Rd4+
{[%clk 0:00:47.7]} 48... Kc5 {[%clk 0:00:15.7]} 49. Rd6 {[%clk 0:00:47.4]} 49...
Rg2 {[%clk 0:00:16]} 50. Rxe6 {[%clk 0:00:47.5]} 50... Rxg3+ {[%clk 0:00:16.2]}
51. Kc2 {[%clk 0:00:48.1]} 51... Rf3 {[%clk 0:00:16.6]} 52. b4+ {[%clk
0:00:19.7]} 52... Kxb4 {[%clk 0:00:16]} 53. Rc6 {[%clk 0:00:17.8]} 53... Rxf4
{[%clk 0:00:15.5]} 54. Kd3 {[%clk 0:00:17]} 54... Kb5 {[%clk 0:00:14.1]} 55. Rc1
{[%clk 0:00:14.8]} 55... Re4 {[%clk 0:00:13.8]} 56. e6 {[%clk 0:00:08.4]} 56...
Rxe6 {[%clk 0:00:13]} 57. Kd4 {[%clk 0:00:09.1]} 57... Re4+ {[%clk 0:00:10]} 58.
Kd5 {[%clk 0:00:08.5]} 58... Re8 {[%clk 0:00:04.8]} 59. Rb1+ {[%clk 0:00:06.2]}
59... Ka4 {[%clk 0:00:04.5]} 60. Rf1 {[%clk 0:00:07.1]} 60... Rf8 {[%clk
0:00:03.5]} 61. Ke5 {[%clk 0:00:07.1]} 61... Re8+ {[%clk 0:00:04]} 62. Kf4
{[%clk 0:00:06]} 62... Rf8 {[%clk 0:00:04.4]} 63. Rd1 {[%clk 0:00:05.8]} 63...
Kb4 {[%clk 0:00:04.1]} 64. Rd5 {[%clk 0:00:05.6]} 64... Kc4 {[%clk 0:00:04.6]}
65. Rxf5 {[%clk 0:00:06.2]} 65... Rh8 {[%clk 0:00:05.3]} 66. Rg5 {[%clk
0:00:06.1]} 66... Rh1 {[%clk 0:00:05.2]} 67. Rg4 {[%clk 0:00:07]} 67... Kd3
{[%clk 0:00:05.6]} 68. Kg3 {[%clk 0:00:07.9]} 68... Ke3 {[%clk 0:00:05.8]} 69.
Ra4 {[%clk 0:00:04.9]} 69... Rb1 {[%clk 0:00:06]} 70. Ra3+ {[%clk 0:00:04.8]}
70... Ke4 {[%clk 0:00:06.5]} 71. Ra4+ {[%clk 0:00:05.3]} 71... Kf5 {[%clk
0:00:06.9]} 72. Ra5+ {[%clk 0:00:05.8]} 72... Ke4 {[%clk 0:00:07.4]} 73. Ra4+
{[%clk 0:00:06.3]} 73... Ke3 {[%clk 0:00:07.9]} 74. Ra3+ {[%clk 0:00:06.5]}
74... Kd4 {[%clk 0:00:08.4]} 75. Ra4+ {[%clk 0:00:07]} 75... Kc3 {[%clk
0:00:08.9]} 76. Ra3+ {[%clk 0:00:07.4]} 76... Kb4 {[%clk 0:00:09.4]} 77. Rf3
{[%clk 0:00:08.3]} 77... Rc1 {[%clk 0:00:09.6]} 78. Rf4+ {[%clk 0:00:08.8]}
78... Kc5 {[%clk 0:00:09.8]} 79. Rf3 {[%clk 0:00:09.7]} 79... Kd4 {[%clk
0:00:10.2]} 80. Rf4+ {[%clk 0:00:10.1]} 80... Ke5 {[%clk 0:00:10.7]} 81. Ra4
{[%clk 0:00:10.3]} 81... Rc3+ {[%clk 0:00:10.4]} 82. Kf2 {[%clk 0:00:10.3]}
82... Rb3 {[%clk 0:00:10.6]} 83. Ra5+ {[%clk 0:00:10.5]} 83... Ke4 {[%clk
0:00:10.7]} 84. Ra4+ {[%clk 0:00:11.4]} 84... Kd3 {[%clk 0:00:11.2]} 85. Rf4
{[%clk 0:00:11]} 85... Rb6 {[%clk 0:00:10.6]} 86. Rf3+ {[%clk 0:00:11.3]} 86...
Kd2 {[%clk 0:00:11]} 87. Ra3 {[%clk 0:00:12.2]} 87... Rf6+ {[%clk 0:00:10.9]}
88. Kg3 {[%clk 0:00:12.2]} 88... Ke2 {[%clk 0:00:10.9]} 89. Ra2+ {[%clk
0:00:12.7]} 89... Kd3 {[%clk 0:00:11.2]} 90. Ra3+ {[%clk 0:00:13.4]} 90... Ke4
{[%clk 0:00:11.6]} 91. Ra4+ {[%clk 0:00:13.8]} 91... Ke3 {[%clk 0:00:12.1]} 92.
Ra3+ {[%clk 0:00:14.4]} 92... Kd4 {[%clk 0:00:12.6]} 93. Ra4+ {[%clk 0:00:14.6]}
93... Ke5 {[%clk 0:00:13]} 94. Ra5+ {[%clk 0:00:14.6]} 94... Ke4 {[%clk
0:00:13.4]} 95. Ra4+ {[%clk 0:00:15]} 95... Kd5 {[%clk 0:00:13.9]} 96. Ra5+
{[%clk 0:00:15.2]} 96... Kc4 {[%clk 0:00:14.4]} 97. Ra4+ {[%clk 0:00:15.6]}
97... Kc3 {[%clk 0:00:14.9]} 98. Rf4 {[%clk 0:00:16.2]} 98... Rg6+ {[%clk
0:00:14.4]} 99. Rg4 {[%clk 0:00:16.6]} 99... Rh6 {[%clk 0:00:14.3]} 100. Rh4
{[%clk 0:00:17]} 100... Re6 {[%clk 0:00:14.5]} 101. Rf4 {[%clk 0:00:17.1]}
101... Kd3 {[%clk 0:00:14.7]} 102. Rf3+ {[%clk 0:00:17.5]} 102... Ke2 {[%clk
0:00:15.1]} 103. Ra3 {[%clk 0:00:18.1]} 103... Rg6+ {[%clk 0:00:13.3]} 104. Kf4
{[%clk 0:00:17.7]} 104... Rf6+ {[%clk 0:00:13.6]} 105. Ke5 {[%clk 0:00:17.7]}
105... Rf8 {[%clk 0:00:13.1]} 106. Ra2+ {[%clk 0:00:18.2]} 106... Kf3 {[%clk
0:00:13.6]} 107. Ra3+ {[%clk 0:00:18.1]} 107... Kg4 {[%clk 0:00:14]} 108. Ke6
{[%clk 0:00:18.2]} 108... Re8+ {[%clk 0:00:12.5]} 109. Kf7 {[%clk 0:00:18.6]}
109... Re5 {[%clk 0:00:12]} 110. Ra4+ {[%clk 0:00:18.9]} 110... Kf5 {[%clk
0:00:12.4]} 111. Ra6 {[%clk 0:00:18.2]} 111... Rb5 {[%clk 0:00:12.1]} 112. Ra7
{[%clk 0:00:17.9]} 112... Rc5 {[%clk 0:00:10.7]} 113. Rd7 {[%clk 0:00:18]}
113... Ke5 {[%clk 0:00:10.5]} 114. Re7+ {[%clk 0:00:18.3]} 114... Kf5 {[%clk
0:00:10.6]} 115. Ra7 {[%clk 0:00:19.2]} 1/2-1/2

[Event "Late-Titled-Tuesday-Blitz-August-29-2023"]
[Site "Chess.com"]
[Date "2023.08.29"]
[Round "8"]
[White "LeninGuerra"]
[Black "viktorgen2021"]
[Result "1-0"]
[WhiteElo "2554"]
[BlackElo "2434"]
[TimeControl "180+1"]
[EndTime "15:23:08 PDT"]
[Termination "LeninGuerra won by resignation"]

1. e4 {[%clk 0:03:00.9]} 1... c6 {[%clk 0:02:54]} 2. Nf3 {[%clk 0:02:59.3]} 2...
d5 {[%clk 0:02:54.1]} 3. exd5 {[%clk 0:03:00.2]} 3... cxd5 {[%clk 0:02:54.1]} 4.
Ne5 {[%clk 0:03:00.1]} 4... Nc6 {[%clk 0:02:53.4]} 5. Bb5 {[%clk 0:02:59.1]}
5... Qc7 {[%clk 0:02:53.1]} 6. Qe2 {[%clk 0:02:57.4]} 6... a6 {[%clk 0:02:51.7]}
7. Bxc6+ {[%clk 0:02:56.9]} 7... bxc6 {[%clk 0:02:51.8]} 8. O-O {[%clk 0:02:56]}
8... a5 {[%clk 0:02:52.3]} 9. b3 {[%clk 0:02:56.1]} 9... Ba6 {[%clk 0:02:52.4]}
10. d3 {[%clk 0:02:56]} 10... e6 {[%clk 0:02:49.7]} 11. Re1 {[%clk 0:02:54.5]}
11... Be7 {[%clk 0:02:49.8]} 12. Bb2 {[%clk 0:02:47.2]} 12... Bf6 {[%clk
0:02:49.9]} 13. Nd2 {[%clk 0:02:26.8]} 13... Ne7 {[%clk 0:02:49]} 14. Ndf3
{[%clk 0:02:26.6]} 14... a4 {[%clk 0:02:48.6]} 15. Nxf7 {[%clk 0:02:12.2]} 15...
Bxb2 {[%clk 0:02:24]} 16. Nxh8 {[%clk 0:02:11.8]} 16... Bxa1 {[%clk 0:02:13.6]}
17. Qxe6 {[%clk 0:02:08.1]} 17... Bf6 {[%clk 0:02:12.6]} 18. Qg8+ {[%clk
0:01:55.6]} 18... Kd7 {[%clk 0:02:06.5]} 19. Qxa8 {[%clk 0:01:55.9]} 1-0